bitfinex-derivatives/quotes_SOLF0:USTF0_20250609
["timestamp","ask_amount","ask_price","bid_price","bid_amount"]
[1749468180662,0.04170543,155.91,155.88,0.04632095]
[1749468181360,0.04170543,155.91,155.9,6.4112]
[1749468183664,0.04170543,155.91,155.9,39.9912]
[1749468186063,5.97861916,156.0,155.9,40.0]
[1749468186270,5.97861916,156.03,155.99,3.23963989]
[1749468186456,5.97861916,156.03,155.99,36.79963989]
[1749468186657,4.24625965,156.02,155.99,36.79963989]
[1749468187063,0.0416192,156.02,155.99,36.84607765]
[1749468187367,0.0416192,156.02,156.01,6.4066]
[1749468189763,0.0416192,156.02,156.0,6.4069]
[1749468190168,0.0416192,156.02,155.99,36.84607765]
[1749468190474,0.0416192,156.02,155.99,33.60643776]
[1749468191267,0.0416192,156.02,156.0,6.4069]
[1749468191468,0.0416192,156.02,155.99,33.60643776]
[1749468192368,0.0416192,156.02,156.0,6.4071]
[1749468192572,0.0416192,156.02,155.99,33.60643776]
[1749468192973,0.0416192,156.02,156.01,6.4067]
[1749468194475,0.0416192,156.02,156.0,6.4069]
[1749468196177,0.0416192,156.02,155.99,40.01373776]
[1749468196371,0.0416192,156.02,155.99,33.60643776]
[1749468196671,0.0416192,156.02,156.0,6.4071]
[1749468197678,0.0416192,156.02,156.01,6.4067]
[1749468198476,0.0416192,156.02,156.01,9.64633989]
[1749468199986,13.0515,156.08,156.04,6.4052]
[1749468200185,10.7882,156.08,156.01,3.23963989]
[1749468200383,6.4031,156.1,156.06,6.4043]
[1749468200585,39.51861916,156.11,156.03,3.23963989]
[1749468200586,4.27278315,156.09,156.03,36.77963989]
[1749468200883,6.44717253,156.08,156.04,0.04735905]
[1749468201073,0.04317253,156.08,156.04,0.04735905]
[1749468201483,6.44707253,156.08,156.04,0.04735905]
[1749468202285,6.44707253,156.08,156.05,6.4048]
[1749468204189,0.04317253,156.08,156.04,0.04735905]
[1749468204786,6.44727253,156.08,156.05,6.4048]
[1749468205292,3.28281242,156.08,156.04,0.04735905]
[1749468205689,6.405,156.05,156.04,0.04735905]
[1749468206084,8.3691762,156.06,156.0,33.54]
[1749468206297,6.4059,156.03,156.0,33.54]
[1749468206791,6.4059,156.03,156.0,39.9468]
[1749468206981,6.44723189,156.03,156.0,39.98891781]
[1749468207482,6.4065,156.02,156.0,33.58211781]
[1749468207683,6.4065,156.02,156.0,0.04211781]
[1749468208191,6.4067,156.01,156.0,0.04211781]
[1749468209693,6.4065,156.02,156.0,0.04211781]
[1749468209892,5.17793139,156.03,156.0,0.04211781]
[1749468210093,3.23963989,156.02,156.0,0.04211781]
[1749468210591,6.4075,156.0,155.97,39.9482]
[1749468211094,6.4075,156.0,155.98,6.4078]
[1749468211286,0.04133189,156.03,155.97,36.77963989]
[1749468211586,0.04133189,156.03,155.98,0.04044612]
[1749468211787,6.44733189,156.03,156.0,6.4068]
[1749468215594,6.4063,156.02,156.0,6.4068]
[1749468216093,0.04133189,156.03,156.0,6.4068]
[1749468216295,6.44733189,156.03,156.0,6.4068]
[1749468216496,6.44733189,156.03,156.01,6.4065]
[1749468217692,6.44733189,156.03,156.0,6.4069]
[1749468218796,6.44733189,156.03,156.01,6.4066]
[1749468218797,0.04133189,156.03,156.01,6.4066]
[1749468218996,0.04133189,156.03,155.99,3.23963989]
[1749468219299,0.04133189,156.03,156.02,6.4063]
[1749468222589,5.12402232,156.07,156.05,6.4047]
[1749468222802,5.12402232,156.09,156.05,6.4047]
[1749468222996,5.12402232,156.08,156.01,3.23963989]
[1749468223198,5.12402232,156.07,156.01,36.73963989]
[1749468223399,11.07126735,156.09,156.01,36.73963989]
[1749468223599,6.44837742,156.07,156.04,6.4054]
[1749468223799,5.12402232,156.06,156.04,6.4054]
[1749468224094,0.04397742,156.07,156.04,6.4054]
[1749468224299,5.12402232,156.06,156.04,6.4054]
[1749468224794,11.52882232,156.06,156.04,6.4054]
[1749468225996,6.4051,156.05,156.03,0.04386294]
[1749468226200,5.12402232,156.04,156.03,0.04386294]
[1749468227197,11.52952232,156.04,156.03,0.04386294]
[1749468228402,15.82247394,156.04,156.03,0.04386294]
[1749468229006,15.82345358,156.04,156.03,0.04386294]
[1749468229209,15.82345339,156.04,156.03,0.04386294]
[1749468229410,15.82344728,156.04,156.03,0.04386294]
[1749468229706,11.52952232,156.04,156.03,0.04386294]
[1749468230006,15.82437551,156.04,156.03,0.04386294]
[1749468230203,17.47676735,156.04,156.03,0.04386294]
[1749468230399,21.77199951,156.04,156.03,0.04386294]
[1749468230706,21.77910364,156.04,156.03,0.04386294]
[1749468230909,17.47676735,156.04,156.03,0.04386294]
[1749468231403,21.77910346,156.04,156.03,0.04386294]
[1749468231603,21.77910364,156.04,156.03,0.04386294]
[1749468232909,21.76980642,156.04,156.03,0.04386294]
[1749468233107,17.47676735,156.04,156.03,0.04386294]
[1749468233303,20.62841748,156.04,155.96,33.5]
[1749468233508,5.98709206,156.02,155.96,33.5]
[1749468233710,9.41713919,156.01,155.96,33.5]
[1749468233910,9.41713919,156.0,155.96,33.5]
[1749468234208,5.12402232,155.99,155.98,6.4076]
[1749468237810,0.04528585,156.0,155.99,6.4075]
[1749468238107,5.17839689,156.0,155.99,6.4075]
[1749468245217,5.17839689,156.0,155.98,6.4076]
[1749468245517,5.13311104,155.99,155.98,6.4076]
[1749468247016,0.04528585,156.0,155.99,6.4075]
[1749468247216,5.18233532,156.0,155.99,6.4075]
[1749468247614,5.18233532,156.0,155.96,36.78635868]
[1749468247615,5.18233532,156.0,155.98,6.4077]
[1749468247809,0.04528585,156.0,155.96,36.78635868]
[1749468248311,5.1378631,155.99,155.98,6.4075]
[1749468249019,0.04528585,156.0,155.99,6.4075]
[1749468249221,5.21905795,156.0,155.99,6.4075]
[1749468250622,9.49513572,156.0,155.96,0.04671879]
[1749468250824,5.1737721,155.99,155.96,0.04671879]
[1749468251018,5.1737721,155.98,155.97,6.4083]
[1749468251517,9.46289537,155.98,155.97,6.4083]
[1749468251816,5.1737721,155.98,155.97,6.4083]
[1749468252522,9.46289051,155.98,155.97,6.4083]
[1749468253119,5.1737721,155.98,155.97,6.4083]
[1749468257625,5.1737721,155.98,155.96,6.45531879]
[1749468257929,5.1737721,155.97,155.96,6.45531879]
[1749468262522,5.1737721,155.97,155.96,0.04671879]
[1749468262731,11.5820721,155.97,155.96,0.04671879]
[1749468262929,5.1737721,155.97,155.96,0.04671879]
[1749468264733,11.5820721,155.97,155.96,0.04671879]
[1749468265325,15.84813575,155.97,155.96,0.04671879]
[1749468265527,11.5820721,155.97,155.96,0.04671879]
[1749468265722,15.84812661,155.97,155.96,0.04671879]
[1749468266125,11.55434942,155.97,155.96,0.04671879]
[1749468266937,15.81942678,155.97,155.96,0.04671879]
[1749468267125,11.55434942,155.97,155.96,0.04671879]
[1749468267327,5.14604942,155.97,155.96,6.45541879]
[1749468267829,9.40255638,155.97,155.96,0.04671879]
[1749468268027,9.40254854,155.97,155.96,0.04671879]
[1749468268435,15.81084854,155.97,155.96,0.04671879]
[1749468268633,11.55434942,155.97,155.96,0.04671879]
[1749468268831,9.40130833,155.97,155.92,33.46]
[1749468269035,6.4094,155.95,155.92,33.46]
[1749468269229,5.14604942,155.94,155.92,33.46]
[1749468269435,6.4094,155.95,155.92,33.46]
[1749468269628,5.14773951,155.94,155.92,33.46]
[1749468269834,6.45504318,155.95,155.92,33.46]
[1749468270135,5.14772761,155.94,155.93,6.4099]
[1749468270330,5.14772761,155.94,155.92,33.46]
[1749468270532,6.45514318,155.95,155.92,39.8701]
[1749468270727,5.15387518,155.94,155.92,39.8701]
[1749468270932,6.45514318,155.95,155.92,33.46]
[1749468271132,5.14579215,155.94,155.92,31.46]
[1749468271427,6.45514318,155.95,155.93,6.4097]
[1749468271627,11.55583613,155.94,155.92,31.46]
[1749468271832,0.04564318,155.95,155.92,31.46]
[1749468272033,5.14421136,155.94,155.92,31.46]
[1749468272233,0.04564318,155.95,155.92,31.46]
[1749468272441,5.14460533,155.94,155.93,6.4099]
[1749468272739,0.04564318,155.95,155.92,31.46]
[1749468273141,0.04564318,155.95,155.93,6.4096]
[1749468273341,0.04564318,155.95,155.92,31.46]
[1749468273635,0.04564318,155.95,155.91,0.04329276]
[1749468273843,8.38330042,155.94,155.91,0.04329276]
[1749468274043,3.23963989,155.92,155.91,0.04329276]
[1749468274241,8.38330042,155.92,155.91,0.04329276]
[1749468274535,9.38391989,155.92,155.91,0.04329276]
[1749468274740,9.38392409,155.92,155.91,0.04329276]
[1749468274939,15.79432409,155.92,155.91,0.04329276]
[1749468275141,9.38392409,155.92,155.91,0.04329276]
[1749468275338,5.14366053,155.92,155.91,0.04329276]
[1749468275738,11.55406053,155.92,155.91,0.04329276]
[1749468276639,5.14366053,155.92,155.91,0.04329276]
[1749468277039,5.14366053,155.93,155.91,0.04329276]
[1749468277244,5.14366053,155.92,155.91,0.04329276]
[1749468277542,5.14366053,155.93,155.91,0.04329276]
[1749468277744,6.4104,155.92,155.91,0.04329276]
[1749468277939,5.14366053,155.93,155.91,0.04329276]
[1749468278241,11.55396053,155.93,155.91,0.04329276]
[1749468278545,5.14366053,155.93,155.91,6.45379276]
[1749468278750,5.12538896,155.93,155.91,0.04329276]
[1749468278952,5.12538896,155.94,155.91,0.04329276]
[1749468279152,5.12538896,155.93,155.92,6.4104]
[1749468279452,5.12538896,155.94,155.91,0.04329276]
[1749468279754,0.04564318,155.95,155.94,6.4096]
[1749468282548,5.12538896,155.97,155.96,6.4087]
[1749468282752,5.12538896,155.97,155.94,3.23963989]
[1749468282753,5.13018367,156.0,155.94,3.23963989]
[1749468282954,5.13018367,155.99,155.94,3.23963989]
[1749468283148,5.13018367,155.99,155.97,6.4081]
[1749468283558,5.13018367,155.98,155.96,6.45745296]
[1749468283748,5.13018367,155.99,155.96,6.45745296]
[1749468284054,11.53778367,155.99,155.96,6.45745296]
[1749468284253,6.4076,155.99,155.96,6.45745296]
[1749468284450,11.53620524,155.99,155.96,6.45745296]
[1749468284651,11.53650524,155.98,155.96,6.45745296]
[1749468284846,6.4079,155.98,155.96,6.45745296]
[1749468285249,11.53686114,155.98,155.96,6.45745296]
[1749468285445,6.4077,155.99,155.96,6.45745296]
[1749468285647,5.12768317,155.98,155.96,6.45745296]
[1749468286652,5.12768317,155.97,155.96,6.45745296]
[1749468286847,11.53558317,155.98,155.96,0.04875296]
[1749468287050,5.12768317,155.97,155.96,0.04875296]
[1749468287249,5.12768317,155.99,155.96,0.04875296]
[1749468287449,5.12768317,155.98,155.96,0.04875296]
[1749468287656,6.4077,155.99,155.96,6.45745296]
[1749468287852,5.14294914,155.98,155.96,0.04875296]
[1749468288054,5.14294914,155.97,155.96,0.04875296]
[1749468288357,6.408,155.98,155.96,0.04875296]
[1749468288550,5.14294914,155.97,155.96,0.04875296]
[1749468288951,5.14294914,155.97,155.96,6.45745296]
[1749468289256,5.14294914,155.98,155.96,6.45745296]
[1749468289458,5.14294914,155.97,155.96,6.45745296]
[1749468290159,5.14294914,155.98,155.96,6.45745296]
[1749468290361,5.14294914,155.97,155.96,6.45745296]
[1749468290863,5.14294914,155.98,155.96,6.45745296]
[1749468291058,5.14294914,155.97,155.96,6.45745296]
[1749468291564,5.14294914,155.98,155.97,6.4083]
[1749468291957,5.14294914,155.99,155.96,3.28839285]
[1749468292157,0.04344179,156.0,155.98,3.23963989]
[1749468292657,5.18639093,156.0,155.98,3.23963989]
[1749468292863,0.04344179,156.0,155.97,33.42]
[1749468293464,5.18783065,156.0,155.97,33.42]
[1749468293666,0.04344179,156.0,155.99,6.4075]
[1749468294167,5.18783065,156.0,155.99,6.4075]
[1749468294360,0.04344179,156.0,155.99,6.4075]
[1749468304868,5.15041442,156.03,156.02,6.4063]
[1749468305068,5.15041442,156.05,156.02,36.65963989]
[1749468305269,5.15041442,156.07,156.02,36.65963989]
[1749468305469,5.15041442,156.06,156.05,6.4048]
[1749468305677,5.15041442,156.07,156.05,6.4048]
[1749468305876,5.15041442,156.06,156.05,6.405]
[1749468306080,5.15041442,156.07,156.04,3.28031119]
[1749468306369,5.15041442,156.07,156.06,6.4046]
[1749468306572,5.97612363,156.14,156.06,36.65963989]
[1749468306770,44.63132705,156.16,156.1,3.23963989]
[1749468306771,5.97612363,156.16,156.1,3.23963989]
[1749468307076,2.2838,156.17,156.11,33.36]
[1749468307468,0.04274741,156.16,156.13,6.4015]
[1749468309677,6.44344741,156.16,156.12,9.6887751]
[1749468310574,6.44344741,156.16,156.13,6.4016]
[1749468311072,6.44344741,156.16,156.12,3.2867751]
[1749468311073,6.44344741,156.16,156.12,9.6887751]
[1749468311276,0.04274741,156.16,156.12,0.04713521]
[1749468312178,6.4018,156.13,156.12,0.04713521]
[1749468313780,6.4015,156.14,156.12,0.04713521]
[1749468314973,6.4018,156.13,156.12,0.04713521]
[1749468315781,6.4033,156.1,156.07,36.57963989]
[1749468316073,6.4033,156.1,156.08,6.4037]
[1749468316373,6.4029,156.11,156.07,33.34]
[1749468316771,6.44548427,156.11,156.07,39.78911146]
[1749468316971,0.04258427,156.11,156.07,33.38501146]
[1749468317481,6.4031,156.1,156.07,33.38501146]
[1749468317879,0.04258427,156.11,156.07,33.38501146]
[1749468318080,0.04258427,156.11,156.08,6.4035]
[1749468319381,6.44528427,156.11,156.08,6.4035]
[1749468319878,6.4033,156.1,156.07,39.78901146]
[1749468320277,0.04258427,156.11,156.07,33.38501146]
[1749468320680,2.25718427,156.11,156.07,33.38501146]
[1749468321282,2.25718427,156.11,156.07,0.04501146]
[1749468321580,6.4038,156.08,156.07,0.04501146]
[1749468324078,6.4036,156.09,156.07,0.04501146]
[1749468324478,6.4034,156.09,156.07,0.04501146]
[1749468324886,3.23963989,156.1,156.07,0.04501146]
[1749468325082,6.4038,156.08,156.07,0.04501146]
[1749468325987,2.25718427,156.11,156.07,0.04501146]
[1749468326284,2.25718427,156.11,156.07,6.44891146]
[1749468326481,6.4031,156.1,156.07,6.44891146]
[1749468327285,8.65988427,156.11,156.08,6.4038]
[1749468327592,2.25718427,156.11,156.08,6.4038]
[1749468327983,8.65998427,156.11,156.08,6.4038]
[1749468328488,2.25718427,156.11,156.07,0.04501146]
[1749468328686,5.49682416,156.11,156.07,0.04501146]
[1749468329790,6.4038,156.08,156.07,0.04501146]
[1749468329982,3.23963989,156.08,156.04,33.34]
[1749468330380,6.4043,156.07,156.04,33.34]
[1749468330578,6.4043,156.07,156.04,39.7454]
[1749468331090,6.45281567,156.07,156.04,39.79415671]
[1749468332185,6.4047,156.06,156.04,33.38875671]
[1749468332386,0.04851567,156.07,156.04,0.04875671]
[1749468332783,6.4046,156.06,156.04,0.04875671]
[1749468333987,6.45291567,156.07,156.04,6.45415671]
[1749468334386,6.45291567,156.07,156.04,0.04875671]
[1749468335187,0.04851567,156.07,156.05,6.405]
[1749468335385,0.04851567,156.07,156.04,0.04875671]
[1749468336182,0.04851567,156.07,156.04,3.2883966]
[1749468336588,0.04851567,156.07,156.06,6.4046]
[1749468337584,0.04851567,156.07,156.06,9.64423989]
[1749468337985,37.7011,156.13,156.09,6.4032]
[1749468337986,4.3611,156.13,156.09,6.4032]
[1749468338185,2.1348,156.13,156.09,6.4032]
[1749468338394,6.4024,156.12,156.09,6.4032]
[1749468339091,6.44849128,156.12,156.09,6.44611222]
[1749468341889,6.44849128,156.12,156.1,6.4029]
[1749468342084,6.44849128,156.12,156.09,0.04291222]
[1749468342389,6.4026,156.11,156.09,0.04291222]
[1749468342590,0.04609128,156.12,156.09,0.04291222]
[1749468342591,5.18216774,156.12,156.09,0.04291222]
[1749468343694,6.403,156.1,156.09,0.04291222]
[1749468345798,11.53907646,156.1,156.09,0.04291222]
[1749468345993,6.403,156.1,156.09,0.04291222]
[1749468346794,11.53907646,156.1,156.09,0.04291222]
[1749468346993,6.403,156.1,156.09,0.04291222]
[1749468347295,11.53907646,156.1,156.09,0.04291222]
[1749468347498,6.403,156.1,156.09,0.04291222]
[1749468347694,11.53907646,156.1,156.09,0.04291222]
[1749468347894,5.13607646,156.1,156.09,0.04291222]
[1749468348092,5.13607646,156.11,156.09,0.04291222]
[1749468348598,5.13607646,156.11,156.09,6.44621222]
[1749468348795,5.13607646,156.11,156.09,0.04291222]
[1749468348997,5.18216774,156.12,156.09,0.04291222]
[1749468349295,0.04609128,156.12,156.09,33.34291222]
[1749468349698,5.18216774,156.12,156.1,6.403]
[1749468349899,0.04609128,156.12,156.1,3.23963989]
[1749468350494,0.04609128,156.12,156.11,6.4026]
[1749468351101,41.43102927,156.18,156.1,3.23963989]
[1749468351102,5.14454055,156.16,156.15,6.4009]
[1749468351998,5.14454055,156.18,156.16,6.4003]
[1749468352193,8.09692927,156.2,156.16,6.4003]
[1749468352194,5.14454055,156.17,156.16,6.4003]
[1749468352500,5.14454055,156.18,156.16,6.4003]
[1749468352696,5.14454055,156.17,156.16,6.4003]
[1749468353002,5.14454055,156.18,156.16,6.4003]
[1749468353197,0.04257241,156.19,156.16,6.4003]
[1749468353198,5.14454055,156.17,156.16,6.4003]
[1749468353394,5.14454055,156.18,156.16,6.4003]
[1749468355501,5.14454055,156.18,156.15,6.44183879]
[1749468355805,5.14454055,156.18,156.15,0.04103879]
[1749468356008,5.14454055,156.17,156.15,0.04103879]
[1749468356305,5.14454055,156.18,156.15,0.04103879]
[1749468356604,5.14454055,156.17,156.15,0.04103879]
[1749468356800,5.14454055,156.18,156.15,0.04103879]
[1749468357000,5.14454055,156.17,156.15,0.04103879]
[1749468357198,5.14454055,156.18,156.15,0.04103879]
[1749468357398,5.14454055,156.17,156.15,0.04103879]
[1749468357609,5.14454055,156.18,156.15,6.44183879]
[1749468358103,11.54424055,156.18,156.15,0.04103879]
[1749468359299,4.31899399,156.17,156.16,6.4004]
[1749468359505,5.18711296,156.19,156.15,0.04103879]
[1749468359701,4.32391589,156.18,156.15,0.04103879]
[1749468359901,11.60299474,156.19,156.15,0.04103879]
[1749468360205,11.60299474,156.19,156.15,6.44173879]
[1749468360403,4.32391441,156.18,156.15,6.44173879]
[1749468360610,5.16082233,156.18,156.15,6.44173879]
[1749468360810,6.44217241,156.19,156.15,6.44173879]
[1749468361104,10.72364821,156.18,156.15,0.04103879]
[1749468361303,6.3998,156.18,156.15,0.04103879]
[1749468361693,6.3998,156.18,156.15,6.44183879]
[1749468361898,11.60229745,156.19,156.15,0.04103879]
[1749468362095,4.31906321,156.18,156.15,0.04103879]
[1749468362296,5.16032504,156.18,156.15,0.04103879]
[1749468362596,5.16032504,156.18,156.15,6.44163879]
[1749468362796,6.44197241,156.19,156.15,6.44163879]
[1749468363206,11.59962063,156.19,156.15,6.44163879]
[1749468363808,11.59962063,156.19,156.16,6.4005]
[1749468364010,5.20022063,156.19,156.16,6.4005]
[1749468366305,11.59952063,156.19,156.15,6.44183879]
[1749468366811,11.59952063,156.19,156.15,0.04103879]
[1749468367809,11.59952063,156.19,156.16,6.4004]
[1749468368211,11.59952063,156.19,156.15,6.44173879]
[1749468368610,6.3997,156.18,156.15,6.44173879]
[1749468370311,11.59972063,156.19,156.15,6.44173879]
[1749468370512,5.20022063,156.19,156.15,6.44173879]
[1749468370711,0.04257241,156.19,156.15,6.44173879]
[1749468371310,6.44197241,156.19,156.15,6.44173879]
[1749468371510,11.59962063,156.19,156.15,6.44173879]
[1749468371712,6.44197241,156.19,156.15,6.44173879]
[1749468372115,11.59333983,156.19,156.15,6.44173879]
[1749468372408,5.19393983,156.19,156.15,0.04103879]
[1749468372607,0.04257241,156.19,156.15,0.04103879]
[1749468373315,6.4004,156.16,156.15,0.04103879]
[1749468374004,3.23963989,156.16,156.08,368.88]
[1749468374203,3.23963989,156.16,156.09,33.22]
[1749468374410,9.39406742,156.15,156.09,39.6231]
[1749468374613,6.4023,156.12,156.09,39.6231]
[1749468374913,5.15136742,156.14,156.09,33.22]
[1749468375113,0.04496566,156.12,156.1,6.4027]
[1749468375911,0.04496566,156.12,156.09,39.67043655]
[1749468376313,6.44716566,156.12,156.09,39.67043655]
[1749468377119,6.4029,156.1,156.09,0.04733655]
[1749468377511,5.14176694,156.11,156.05,33.22]
[1749468377712,8.42637249,156.12,156.05,33.22]
[1749468378319,6.4037,156.09,156.05,39.6247]
[1749468378519,6.449373,156.09,156.05,39.66886441]
[1749468379208,6.449373,156.09,156.06,6.4045]
[1749468379619,0.045673,156.09,156.06,6.4045]
[1749468379823,0.045673,156.09,156.05,36.5038043]
[1749468380429,0.045673,156.09,156.08,6.4037]
[1749468381223,0.045673,156.09,156.07,6.404]
[1749468381622,0.045673,156.09,156.05,36.5038043]
[1749468382027,0.045673,156.09,156.07,6.4041]
[1749468382230,0.045673,156.09,156.05,36.5038043]
[1749468382925,0.045673,156.09,156.08,6.4037]
[1749468383434,0.045673,156.09,156.05,36.5038043]
[1749468384325,0.045673,156.09,156.08,6.4037]
[1749468384630,5.13358413,156.14,156.07,3.23963989]
[1749468384830,5.13358413,156.15,156.12,6.4018]
[1749468385724,5.17800404,156.15,156.12,6.44945732]
[1749468385920,5.17800404,156.15,156.12,0.04765732]
[1749468386424,0.04441991,156.15,156.13,6.4014]
[1749468387226,0.04441991,156.15,156.12,6.44955732]
[1749468387622,0.04441991,156.15,156.12,0.04765732]
[1749468387829,5.14066628,156.14,156.12,0.04765732]
[1749468388125,5.14066628,156.13,156.07,33.22]
[1749468388324,6.4021,156.12,156.08,6.4034]
[1749468388730,11.54276628,156.12,156.08,6.4034]
[1749468388926,6.4021,156.12,156.08,6.4034]
[1749468389123,6.4026,156.11,156.08,0.04102509]
[1749468389329,0.0435216,156.12,156.08,0.04102509]
[1749468389632,5.18641524,156.12,156.08,0.04102509]
[1749468389830,5.14289364,156.11,156.08,0.04102509]
[1749468390135,0.0435216,156.12,156.08,0.04102509]
[1749468390432,5.18641524,156.12,156.08,0.04102509]
[1749468390633,5.14289364,156.11,156.08,0.04102509]
[1749468390834,6.4029,156.1,156.08,0.04102509]
[1749468391435,6.4033,156.09,156.08,0.04102509]
[1749468393132,11.55122663,156.09,156.08,0.04102509]
[1749468393332,6.4033,156.09,156.08,0.04102509]
[1749468393831,11.55122663,156.09,156.08,0.04102509]
[1749468395333,0.0435216,156.12,156.08,0.04102509]
[1749468395535,5.14646161,156.11,156.08,0.04102509]
[1749468395935,6.4027,156.11,156.08,6.44472509]
[1749468396134,5.14646161,156.11,156.08,0.04102509]
[1749468396334,5.18998321,156.12,156.08,0.04102509]
[1749468396537,11.59238321,156.12,156.08,6.44442509]
[1749468396736,5.14646161,156.11,156.08,6.44442509]
[1749468397139,6.4459216,156.12,156.08,0.04102509]
[1749468397640,6.4459216,156.12,156.08,6.44432509]
[1749468397842,6.4459216,156.12,156.08,39.68432509]
[1749468398537,6.4459216,156.12,156.09,6.4033]
[1749468399637,0.0435216,156.12,156.1,6.4028]
[1749468400037,5.17107956,156.12,156.08,33.28102509]
[1749468400241,11.57317956,156.12,156.08,33.28102509]
[1749468400541,0.0435216,156.12,156.08,33.28102509]
[1749468401043,0.0435216,156.12,156.09,6.403]
[1749468401635,0.0435216,156.12,156.09,3.23963989]
[1749468402237,0.0435216,156.12,156.1,6.4026]
[1749468402832,0.0435216,156.12,156.08,33.28102509]
[1749468403039,5.13604531,156.16,156.11,3.23963989]
[1749468403237,6.3998,156.18,156.13,9.64103989]
[1749468403544,5.13604531,156.17,156.14,33.18]
[1749468403739,5.13604531,156.16,156.12,33.18]
[1749468403939,5.13604531,156.19,156.12,39.5818]
[1749468404143,0.04501115,156.17,156.14,0.0422751]
[1749468405244,6.44521115,156.17,156.14,6.4434751]
[1749468405842,0.04501115,156.17,156.15,6.4008]
[1749468406047,0.04501115,156.17,156.14,0.0422751]
[1749468406340,0.04501115,156.17,156.15,6.4004]
[1749468407444,0.04501115,156.17,156.14,6.4432751]
[1749468407650,0.04501115,156.17,156.14,0.0422751]
[1749468407837,5.15981339,156.17,156.14,0.0422751]
[1749468408042,5.15981339,156.17,156.14,6.4432751]
[1749468408449,5.15981339,156.17,156.14,0.0422751]
[1749468409053,11.55991339,156.17,156.14,0.0422751]
[1749468409348,6.44511115,156.17,156.14,0.0422751]
[1749468410145,6.4008,156.15,156.14,0.0422751]
[1749468412849,5.12024055,156.16,156.14,0.0422751]
[1749468413350,6.4008,156.15,156.14,0.0422751]
[1749468414051,11.52084055,156.16,156.14,0.0422751]
[1749468416148,5.12024055,156.15,156.14,0.0422751]
[1749468416651,5.12024055,156.16,156.14,0.0422751]
[1749468417753,5.12024055,156.16,156.15,6.4008]
[1749468418649,0.04501115,156.17,156.15,6.4008]
[1749468419248,5.16466153,156.17,156.15,6.4008]
[1749468419644,5.16466153,156.17,156.16,6.4004]
[1749468419845,5.16466153,156.17,156.14,0.0422751]
[1749468420046,0.04501115,156.17,156.14,3.28191499]
[1749468420359,0.04501115,156.17,156.16,6.4004]
[1749468421454,0.04501115,156.17,156.15,6.4006]
[1749468422552,0.04501115,156.17,156.14,0.0422751]
[1749468423154,5.16565781,156.17,156.14,0.0422751]
[1749468423557,0.04501115,156.17,156.15,6.4006]
[1749468424653,5.16612363,156.17,156.15,6.4006]
[1749468424951,0.04501115,156.17,156.15,6.4006]
[1749468425755,0.04501115,156.17,156.14,0.0422751]
[1749468425756,6.44501115,156.17,156.14,6.4433751]
[1749468426361,0.04501115,156.17,156.14,6.4433751]
[1749468426760,5.1713848,156.17,156.14,0.0422751]
[1749468426957,11.52717365,156.16,156.14,0.0422751]
[1749468427159,6.4008,156.16,156.14,0.0422751]
[1749468427360,5.12670291,156.15,156.14,0.0422751]
[1749468427559,11.52750291,156.16,156.14,0.0422751]
[1749468427757,5.12670291,156.16,156.14,0.0422751]
[1749468428056,6.44511115,156.17,156.16,6.4004]
[1749468428057,0.04501115,156.17,156.16,6.4004]
[1749468428557,0.04501115,156.17,156.15,6.4007]
[1749468429163,0.04501115,156.17,156.16,6.4004]
[1749468434165,0.04501115,156.17,156.15,6.4008]
[1749468436279,0.04501115,156.17,156.16,6.4004]
[1749468437669,0.04501115,156.17,156.15,6.4006]
[1749468438060,0.04501115,156.17,156.14,0.0422751]
[1749468438465,0.04501115,156.17,156.16,6.4004]
[1749468440470,5.13236181,156.21,156.15,3.23963989]
[1749468440669,8.5401,156.23,156.17,3.23963989]
[1749468440867,5.13131223,156.22,156.18,33.1]
[1749468441073,5.13131223,156.21,156.18,33.1]
[1749468441263,2.1423,156.23,156.18,33.1]
[1749468441466,5.17387544,156.22,156.19,0.04320631]
[1749468441668,5.12693538,156.21,156.19,0.04320631]
[1749468441863,5.12693538,156.2,156.19,0.04320631]
[1749468442074,5.12693538,156.21,156.19,0.04320631]
[1749468442273,5.12693538,156.2,156.19,0.04320631]
[1749468448083,5.12693538,156.2,156.19,6.44240631]
[1749468449286,0.04694006,156.22,156.2,6.3987]
[1749468449582,5.14930996,156.21,156.2,6.3987]
[1749468449781,5.14930996,156.21,156.19,0.04320631]
[1749468449782,5.14930996,156.21,156.19,6.44220631]
[1749468449982,0.04694006,156.22,156.19,0.04320631]
[1749468450178,5.14859141,156.21,156.19,0.04320631]
[1749468450385,0.04694006,156.22,156.19,0.04320631]
[1749468450580,5.14867771,156.21,156.19,0.04320631]
[1749468450781,0.04694006,156.22,156.19,0.04320631]
[1749468451085,5.14811911,156.21,156.19,6.44210631]